bitfinex/quotes_BTCUSD_20241003
["timestamp","ask_amount","ask_price","bid_price","bid_amount"]
[1727965371396,0.330742,60470.0,60462.0,0.2463924]
[1727965371618,0.33075,60469.0,60461.0,0.2002]
[1727965371875,0.02592476,60469.0,60463.0,0.00885043]
[1727965372110,0.02592476,60469.0,60461.0,0.530989]
[1727965372111,0.02592476,60469.0,60462.0,0.00885153]
[1727965372321,0.02592476,60469.0,60461.0,0.2002]
[1727965372322,0.02592476,60469.0,60468.0,0.165376]
[1727965372767,0.02592476,60469.0,60468.0,0.00884494]
[1727965373245,0.02592476,60469.0,60461.0,0.2002]
[1727965373465,0.44442091,60468.0,60462.0,0.165391]
[1727965373715,0.5771554,60467.0,60462.0,0.00886168]
[1727965373956,0.44442091,60468.0,60462.0,0.00886168]
[1727965374172,0.02592476,60469.0,60462.0,0.00886168]
[1727965374173,0.2463924,60467.0,60465.0,0.165383]
[1727965374440,0.02592476,60469.0,60463.0,0.330779]
[1727965374685,0.02692476,60469.0,60468.0,0.166376]
[1727965374902,0.001,60469.0,60468.0,0.166376]
[1727965375163,0.001,60469.0,60468.0,0.17523109]
[1727965375645,0.00032255,60471.0,60470.0,0.165371]
[1727965376402,0.00032255,60471.0,60470.0,0.1742055]
[1727965376651,0.02499405,60471.0,60470.0,0.1742055]
[1727965376901,0.61011146,60471.0,60470.0,0.0088345]
[1727965377164,0.00032255,60471.0,60470.0,0.0088345]
[1727965377397,0.00032255,60471.0,60470.0,0.165371]
[1727965377646,0.44474346,60471.0,60470.0,0.00883466]
[1727965377895,0.65558581,60471.0,60470.0,0.01865566]
[1727965378108,0.65458581,60471.0,60470.0,0.000821]
[1727965378559,0.61011146,60471.0,60470.0,0.000821]
[1727965378797,0.00132255,60471.0,60470.0,0.178192]
[1727965379047,0.00032255,60471.0,60470.0,0.000821]
[1727965379260,0.00132255,60471.0,60470.0,0.0192228]
[1727965379509,0.00132255,60471.0,60470.0,0.1845938]
[1727965379749,0.00032255,60471.0,60470.0,0.166192]
[1727965380091,0.00032255,60471.0,60470.0,0.1755938]
[1727965380488,0.00032255,60471.0,60470.0,0.0102228]
[1727965380918,0.00032255,60471.0,60470.0,0.175192]
[1727965380919,0.00132255,60471.0,60470.0,0.175192]
[1727965381129,0.00032255,60471.0,60470.0,0.01019857]
[1727965381537,0.00132255,60471.0,60470.0,0.012821]
[1727965381715,0.00032255,60471.0,60470.0,0.01022802]
[1727965381928,0.20138667,60471.0,60470.0,0.01022802]
[1727965382138,0.00132255,60471.0,60470.0,0.18759902]
[1727965382377,0.00032255,60471.0,60470.0,0.166192]
[1727965382578,0.00032255,60471.0,60470.0,0.17556767]
[1727965382832,0.330585,60499.0,60470.0,0.89517529]
[1727965383061,0.330585,60499.0,60490.0,0.165316]
[1727965383062,0.2463924,60491.0,60490.0,0.165316]
[1727965383295,0.2463924,60491.0,60481.0,0.16534]
[1727965383511,0.2463924,60491.0,60490.0,0.00994545]
[1727965383512,0.4117054,60491.0,60490.0,0.00994545]
[1727965383732,0.330639,60489.0,60482.0,0.165337]
[1727965383952,0.330639,60489.0,60470.0,0.012821]
[1727965383953,0.44442091,60485.0,60470.0,0.012821]
[1727965384158,0.165332,60484.0,60483.0,0.00990681]
[1727965384430,0.165332,60484.0,60470.0,0.012821]
[1727965384431,0.166368,60471.0,60470.0,0.012821]
[1727965384642,0.61078891,60471.0,60470.0,0.000821]
[1727965385429,0.60978891,60471.0,60470.0,0.000821]
[1727965385677,0.60978891,60471.0,60447.0,0.002]
[1727965385678,0.165393,60462.0,60444.0,0.16544]
[1727965385899,0.60981391,60462.0,60442.0,0.330894]
[1727965386118,0.60981391,60462.0,60441.0,0.0002]
[1727965386119,0.165393,60462.0,60461.0,0.20845157]
[1727965386339,0.60981391,60462.0,60461.0,0.2002]
[1727965386570,0.70981391,60462.0,60461.0,0.2002]
[1727965386815,0.60981391,60462.0,60461.0,0.2002]
[1727965387040,0.330763,60467.0,60461.0,0.2002]
[1727965387268,0.2463924,60467.0,60461.0,0.2002]
[1727965387495,0.330765,60466.0,60461.0,0.2002]
[1727965387730,0.2463924,60467.0,60461.0,0.2002]
[1727965387956,0.0908,60484.0,60466.0,0.33076]
[1727965387957,0.330704,60477.0,60466.0,0.33076]
[1727965388236,0.2463924,60469.0,60468.0,0.165376]
[1727965388487,0.2463924,60476.0,60467.0,0.00838516]
[1727965388721,0.165375,60469.0,60467.0,0.00838516]
[1727965388939,0.165375,60469.0,60468.0,0.00838406]
[1727965389185,0.29250109,60469.0,60468.0,0.00838406]
[1727965389424,0.47034145,60472.0,60461.0,0.2002]
[1727965389640,0.165374,60469.0,60465.0,0.165384]
[1727965389883,0.47034145,60472.0,60471.0,0.165368]
[1727965389884,0.02592054,60472.0,60471.0,0.165368]
[1727965390127,0.02592054,60472.0,60461.0,0.2002]
[1727965390128,0.330611,60494.0,60482.0,0.165338]
[1727965390350,0.002,60513.0,60471.0,0.00831533]
[1727965390351,0.330677,60482.0,60471.0,0.00831533]
[1727965390600,0.60975591,60483.0,60482.0,0.00830325]
[1727965390840,0.60975591,60483.0,60466.0,0.1]
[1727965390841,0.001,60476.0,60466.0,0.1]
[1727965391094,0.001,60476.0,60475.0,0.165357]
[1727965391340,0.44442091,60491.0,60470.0,0.165371]
[1727965391341,0.001642,60471.0,60470.0,0.165371]
[1727965391578,0.001642,60471.0,60470.0,0.265371]
[1727965392097,0.001642,60471.0,60464.0,0.000821]
[1727965392098,0.001642,60471.0,60466.0,0.014]
[1727965392345,0.001642,60471.0,60470.0,0.165371]
[1727965393047,0.001642,60471.0,60469.0,0.165371]
[1727965393272,0.001642,60471.0,60464.0,0.000821]
[1727965393273,0.0514144,60471.0,60466.0,0.330761]
[1727965393508,0.0514144,60471.0,60464.0,0.000821]
[1727965393509,0.001642,60471.0,60464.0,0.000821]
[1727965393732,0.001642,60471.0,60470.0,0.165371]
[1727965393961,0.001642,60471.0,60470.0,0.179371]
[1727965394398,0.001642,60471.0,60470.0,0.165371]
[1727965395140,0.02591732,60490.0,60478.0,0.002]
[1727965395366,0.2463924,60484.0,60483.0,0.165335]
[1727965395850,0.44442091,60502.0,60495.0,0.165301]
[1727965396087,0.04921586,60518.0,60492.0,0.33062]
[1727965396088,0.330567,60503.0,60492.0,0.33062]
[1727965396313,0.69081331,60508.0,60483.0,0.16318671]
[1727965396314,0.2463924,60508.0,60507.0,0.16527]
[1727965396536,0.2463924,60508.0,60494.0,0.330611]
[1727965396784,0.2463924,60508.0,60488.0,0.002]
[1727965396785,0.2463924,60508.0,60507.0,0.00818012]
[1727965397008,0.165265,60509.0,60503.0,0.330562]
[1727965397235,0.165257,60512.0,60507.0,0.17344912]
[1727965397460,0.165257,60512.0,60491.0,0.363797]
[1727965397461,0.2463924,60508.0,60491.0,0.03317]
[1727965397690,0.44442091,60512.0,60492.0,0.2463924]
[1727965397936,0.0832,60516.0,60491.0,0.03317]
[1727965397937,0.0832,60516.0,60507.0,0.009]
[1727965398188,0.2463924,60514.0,60513.0,0.165253]
[1727965398617,0.2463924,60514.0,60507.0,0.005]
[1727965398618,0.33051,60513.0,60507.0,0.005]
[1727965398880,0.165261,60510.0,60490.0,0.002]
[1727965399124,0.44606291,60520.0,60500.0,0.002]
[1727965399423,0.44606291,60520.0,60491.0,0.40957911]
[1727965399424,0.2463924,60509.0,60508.0,0.165267]
[1727965399648,0.2463924,60509.0,60491.0,0.16318671]
[1727965399649,0.2463924,60513.0,60490.0,0.00425494]
[1727965399911,0.2463924,60513.0,60488.0,0.002]
[1727965399912,0.001642,60520.0,60493.0,0.14881247]
[1727965400124,0.001642,60520.0,60496.0,0.1]
[1727965400355,0.001642,60520.0,60506.0,0.330545]
[1727965400610,0.001642,60520.0,60496.0,0.1]
[1727965400827,0.001642,60520.0,60519.0,0.165237]
[1727965401329,0.001642,60520.0,60517.0,0.330485]
[1727965401330,0.001642,60520.0,60517.0,0.165242]
[1727965401545,0.001642,60520.0,60516.0,0.330488]
[1727965401781,0.165249,60515.0,60495.0,0.002]
[1727965402047,0.001642,60520.0,60514.0,0.2463924]
[1727965402286,0.001642,60520.0,60519.0,0.165237]
[1727965402824,0.001642,60532.0,60531.0,0.165204]
[1727965403060,0.001642,60532.0,60531.0,0.70962491]
[1727965403306,0.001642,60532.0,60531.0,0.74279491]
[1727965403533,0.001642,60532.0,60531.0,0.265204]
[1727965403755,0.001642,60532.0,60531.0,0.43039071]
[1727965404004,0.001642,60532.0,60531.0,0.42839071]
[1727965404468,0.2463924,60541.0,60540.0,0.16518]
[1727965404728,0.2463924,60556.0,60548.0,0.165158]
[1727965404954,0.2463924,60556.0,60548.0,0.32834471]
[1727965405168,0.2463924,60556.0,60555.0,0.165139]
[1727965405391,0.2463924,60556.0,60555.0,0.32832571]
[1727965405896,0.330163,60577.0,60555.0,0.32832571]
[1727965405897,0.2463924,60573.0,60560.0,0.165124]
[1727965406135,0.2463924,60561.0,60558.0,0.44442091]
[1727965406351,0.2463924,60573.0,60564.0,0.165114]
[1727965406352,0.165096,60571.0,60564.0,0.165114]
[1727965406563,0.165096,60571.0,60550.0,0.005]
[1727965406564,0.165099,60570.0,60562.0,0.330239]
[1727965406805,0.2463924,60573.0,60566.0,0.165107]
[1727965407076,0.30404854,60572.0,60551.0,0.1]
[1727965407295,0.165107,60567.0,60562.0,0.165119]
[1727965407575,0.2463924,60564.0,60548.0,0.014]
[1727965407793,0.330218,60566.0,60531.0,0.51635877]
[1727965407794,0.0969,60563.0,60550.0,0.2463924]
[1727965408011,0.0969,60563.0,60529.0,0.002]
[1727965408012,0.33026,60559.0,60536.0,0.330379]
[1727965408269,0.1396118,60563.0,60536.0,0.330379]
[1727965408270,0.330268,60557.0,60547.0,0.2463924]
[1727965408486,0.330275,60556.0,60540.0,0.2463924]
[1727965408712,0.02588686,60561.0,60552.0,0.330293]
[1727965408955,0.02588686,60561.0,60548.0,0.006]
[1727965408956,0.165148,60552.0,60548.0,0.006]
[1727965409215,0.330258,60559.0,60517.0,0.005]
[1727965409216,0.69081331,60554.0,60517.0,0.005]
[1727965409474,0.69081331,60554.0,60515.0,0.002]
[1727965409475,0.165174,60542.0,60541.0,0.2463924]
[1727965409733,0.165178,60541.0,60528.0,0.330422]
[1727965409959,0.46742091,60553.0,60514.0,0.422899]
[1727965409960,0.330372,60538.0,60529.0,0.2463924]
[1727965410209,0.330355,60541.0,60516.0,0.005]
[1727965410453,0.2463924,60548.0,60538.0,0.165184]
[1727965410454,0.2463924,60540.0,60538.0,0.165184]
[1727965410696,0.2463924,60540.0,60522.0,0.102]
[1727965410931,0.2463924,60540.0,60529.0,0.1]
[1727965411594,0.2463924,60540.0,60514.0,0.005]
[1727965411595,0.30406644,60540.0,60514.0,0.005]
[1727965411846,0.165182,60539.0,60538.0,0.01]
[1727965412107,0.2463924,60539.0,60538.0,0.01]
[1727965412329,0.4115744,60539.0,60538.0,0.01]
[1727965412590,0.165182,60539.0,60538.0,0.01]
[1727965412832,0.165182,60539.0,60517.0,0.2463924]
[1727965412833,0.58468195,60539.0,60517.0,0.2463924]
[1727965413055,0.165215,60527.0,60526.0,0.2463924]
[1727965413290,0.44442091,60532.0,60506.0,0.330544]
[1727965413537,0.0832,60531.0,60521.0,0.2463924]
[1727965413779,0.0832,60531.0,60499.0,0.44442091]
[1727965413780,0.165241,60518.0,60507.0,0.21216585]
[1727965414025,0.330454,60523.0,60511.0,0.330517]
[1727965414257,0.330454,60523.0,60500.0,0.330576]
[1727965414258,0.165249,60515.0,60495.0,0.002]
[1727965414544,0.2463924,60522.0,60504.0,0.2463924]
[1727965414545,0.330502,60514.0,60504.0,0.2463924]
[1727965414786,0.330502,60514.0,60496.0,0.19635671]
[1727965414787,0.16527,60507.0,60506.0,0.001]
[1727965415042,0.330469,60520.0,60496.0,0.16318671]
[1727965415043,0.02590331,60512.0,60496.0,0.16318671]
[1727965415291,0.02590331,60512.0,60496.0,0.49378471]
[1727965415292,0.35642131,60512.0,60496.0,0.49378471]
[1727965415554,0.35642131,60512.0,60484.0,0.10897]
[1727965415555,0.02590331,60512.0,60484.0,0.10897]
[1727965415816,0.02590331,60512.0,60480.0,0.44442091]
[1727965415817,0.02590331,60512.0,60499.0,0.165291]
[1727965416042,0.02463924,60521.0,60513.0,0.165253]
[1727965416043,0.2463924,60514.0,60513.0,0.165253]
[1727965416259,0.2463924,60514.0,60504.0,0.002]
[1727965416505,0.2463924,60514.0,60507.0,0.33054]
[1727965416767,0.2463924,60514.0,60507.0,0.165269]
[1727965416995,0.2463924,60514.0,60504.0,0.002]
[1727965417244,0.2463924,60514.0,60497.0,0.00082]
[1727965417479,0.330565,60503.0,60497.0,0.00082]
[1727965417700,0.165294,60498.0,60497.0,0.00082]
[1727965418184,0.661142,60502.0,60497.0,0.00082]
[1727965418185,0.0924,60509.0,60497.0,0.00082]
[1727965418471,0.0924,60509.0,60500.0,0.330574]
[1727965418472,0.2463924,60507.0,60500.0,0.330574]
[1727965418713,0.5768984,60514.0,60498.0,0.330588]
[1727965418976,0.5768984,60514.0,60502.0,0.165283]
[1727965418977,0.001,60503.0,60502.0,0.165283]
[1727965419207,0.5768984,60514.0,60502.0,0.165283]
[1727965419208,0.165222,60525.0,60520.0,0.165233]
[1727965419461,0.165222,60525.0,60518.0,0.330476]
[1727965419462,0.2463924,60519.0,60518.0,0.16524]
[1727965419729,0.2463924,60526.0,60501.0,0.002]
[1727965419961,0.2463924,60526.0,60512.0,0.165253]
[1727965419962,0.34740014,60525.0,60512.0,0.165253]
[1727965420243,0.34740014,60525.0,60497.0,0.44524091]
[1727965420244,0.2463924,60518.0,60497.0,0.00082]
[1727965420434,0.44442091,60522.0,60509.0,0.165263]
[1727965420435,0.165252,60514.0,60509.0,0.165263]
[1727965420664,0.2463924,60517.0,60499.0,0.1]
[1727965420892,0.26339967,60516.0,60509.0,0.330525]
[1727965421119,0.2463924,60516.0,60509.0,0.330525]
[1727965421342,0.2463924,60516.0,60508.0,0.33053]
[1727965421583,0.2463924,60516.0,60512.0,0.165256]
[1727965421800,0.02590241,60516.0,60500.0,0.16318671]
[1727965422040,0.35639341,60516.0,60502.0,0.330566]
[1727965422277,0.02590241,60516.0,60509.0,0.337527]
[1727965422522,0.2463924,60511.0,60509.0,0.007]
[1727965422750,0.02590241,60516.0,60509.0,0.172262]
[1727965423024,0.330508,60513.0,60509.0,0.007]
[1727965423240,0.165261,60510.0,60509.0,0.007]
[1727965423473,0.34749001,60512.0,60511.0,0.165259]
[1727965423474,0.01698955,60512.0,60511.0,0.165259]
[1727965423688,0.02590241,60516.0,60511.0,0.165259]
[1727965423689,0.02590241,60516.0,60511.0,0.330514]
[1727965423932,0.2463924,60526.0,60512.0,0.16318671]
[1727965424194,0.01698408,60525.0,60512.0,0.16318671]
[1727965424416,0.2463924,60526.0,60512.0,0.16318671]
[1727965424417,0.2463924,60526.0,60525.0,0.16522]
[1727965424635,0.02590064,60532.0,60531.0,0.165204]
[1727965424636,0.2463924,60532.0,60531.0,0.165204]
[1727965424887,0.2463924,60532.0,60520.0,0.44442091]
[1727965424888,0.2480324,60540.0,60520.0,0.44442091]
[1727965425119,0.2480324,60540.0,60539.0,0.165182]
[1727965425340,0.2480324,60540.0,60536.0,0.330376]
[1727965425341,0.2480324,60540.0,60536.0,0.165188]
[1727965425597,0.2480324,60540.0,60532.0,0.330401]
[1727965425855,0.2480324,60540.0,60528.0,0.330423]
[1727965426073,0.2480324,60540.0,60525.0,0.330439]
[1727965426074,0.165199,60533.0,60525.0,0.330438]
[1727965426289,0.00164,60540.0,60526.0,0.2463924]
[1727965426525,0.00164,60540.0,60531.0,0.660815]
[1727965426526,0.2463924,60537.0,60531.0,0.660815]
[1727965426807,0.5767704,60537.0,60529.0,0.330419]
[1727965427043,0.165195,60535.0,60524.0,0.16318671]
[1727965427258,0.5767704,60537.0,60524.0,0.16318671]
[1727965427489,0.2463924,60536.0,60524.0,0.16318671]
[1727965427731,0.165194,60535.0,60531.0,0.165203]
[1727965428017,0.2463924,60536.0,60524.0,0.16318671]
[1727965428018,0.2463924,60536.0,60535.0,0.165193]
[1727965428243,0.00164,60540.0,60539.0,0.165182]
[1727965428714,0.00164,60540.0,60524.0,0.001]
[1727965428932,0.00164,60540.0,60539.0,0.165182]
[1727965429416,0.00164,60540.0,60538.0,0.33037]
[1727965429417,0.00164,60540.0,60535.0,0.014]
[1727965429657,0.00164,60540.0,60536.0,0.33038]
[1727965429878,0.00164,60540.0,60529.0,0.1]
[1727965430109,0.00164,60540.0,60539.0,0.165182]
[1727965431087,0.00164,60540.0,60539.0,0.42836871]
[1727965431880,0.00164,60540.0,60539.0,0.265182]
[1727965432072,0.00164,60540.0,60539.0,0.279182]
[1727965432550,0.00164,60540.0,60539.0,0.265182]
[1727965432792,0.00164,60540.0,60539.0,0.279182]
[1727965433014,0.00164,60540.0,60539.0,0.265182]
[1727965433292,0.00164,60540.0,60539.0,0.165182]
[1727965433541,0.00164,60540.0,60539.0,0.179182]
[1727965434462,0.00164,60540.0,60539.0,0.37553871]
[1727965434683,0.00164,60540.0,60539.0,0.36153871]
[1727965434922,0.00164,60540.0,60539.0,0.212352]
[1727965435822,0.00164,60540.0,60539.0,0.165182]
[1727965436047,0.00164,60540.0,60539.0,0.179182]
[1727965436277,0.00164,60540.0,60539.0,0.42836871]
[1727965436751,0.00164,60540.0,60539.0,0.44236871]
[1727965437241,0.00164,60540.0,60539.0,0.47753871]
[1727965437499,5.0,60550.0,60542.0,0.007]
[1727965437736,5.0,60550.0,60549.0,0.265155]
[1727965438970,5.0,60550.0,60549.0,0.165155]
[1727965439553,5.0,60550.0,60549.0,0.87276262]
[1727965439778,5.0,60550.0,60549.0,0.89576262]
[1727965440027,5.0,60550.0,60549.0,0.93093262]
[1727965440285,5.0,60550.0,60549.0,0.90593262]
[1727965440776,4.834845,60550.0,60549.0,0.49151171]
[1727965441013,4.66969,60550.0,60549.0,0.49151171]
[1727965441269,4.66969,60550.0,60549.0,0.55428569]
[1727965441520,4.66969,60550.0,60549.0,0.50978118]
[1727965441521,4.67133,60550.0,60549.0,0.50978118]
[1727965441801,4.67133,60550.0,60549.0,0.55551032]
[1727965442078,4.472237,60550.0,60549.0,0.50978118]
[1727965442286,4.472237,60550.0,60549.0,0.55854366]
[1727965442531,4.3444483,60550.0,60549.0,0.98712132]
[1727965442799,4.3444483,60550.0,60549.0,1.10391803]
[1727965442800,3.21364687,60550.0,60549.0,1.10391803]
[1727965443037,3.21364687,60550.0,60549.0,0.94431803]
[1727965443038,2.50494351,60550.0,60549.0,0.94431803]
[1727965443282,2.50494351,60550.0,60549.0,0.61517646]
[1727965443529,2.50494351,60550.0,60549.0,0.47570703]
[1727965444036,2.50494351,60550.0,60549.0,0.48970703]
[1727965444289,2.50494351,60550.0,60549.0,0.47570703]
[1727965444544,2.50494351,60550.0,60549.0,0.48070703]
[1727965444798,2.50494351,60550.0,60549.0,0.49470703]
[1727965445060,2.50494351,60550.0,60549.0,0.54340872]
[1727965445341,2.50494351,60550.0,60549.0,1.52699962]
[1727965445342,2.30319958,60550.0,60549.0,1.52699962]
[1727965445550,2.28612051,60550.0,60549.0,1.18312617]
[1727965445800,0.27235064,60550.0,60549.0,1.18812617]
[1727965446067,0.1946024,60575.0,60574.0,0.305257]
[1727965446311,0.17556872,60575.0,60574.0,0.74967791]
[1727965446560,0.2463924,60582.0,60581.0,0.172068]
[1727965446561,0.22665178,60582.0,60581.0,0.172068]
[1727965446819,0.0888923,60610.0,60600.0,0.167016]
[1727965447098,0.0097923,60610.0,60600.0,0.74790669]
[1727965447323,0.0097923,60610.0,60600.0,0.75560676]
[1727965447546,0.2463924,60608.0,60600.0,0.47437256]
[1727965448241,0.2463924,60608.0,60600.0,0.4836611]
[1727965448481,0.0097923,60610.0,60600.0,0.4836611]
[1727965448482,0.0097923,60610.0,60600.0,0.95108201]
[1727965448714,0.2463924,60607.0,60600.0,0.95108201]
[1727965448955,0.2463924,60607.0,60600.0,0.5066611]
[1727965449200,0.2463924,60607.0,60600.0,0.8098961]
[1727965449421,0.2463924,60607.0,60600.0,0.5206611]
[1727965449656,0.2463924,60607.0,60600.0,0.47237256]
[1727965449878,0.2463924,60607.0,60600.0,0.19001585]
[1727965450103,0.2463924,60607.0,60600.0,0.02499985]
[1727965450104,0.77443291,60604.0,60600.0,0.02499985]
[1727965450329,0.77443291,60604.0,60600.0,0.014]
[1727965450330,0.24203682,60601.0,60600.0,0.014]
[1727965450579,0.076942,60601.0,60600.0,0.165016]
[1727965451044,0.076942,60601.0,60600.0,0.179016]
[1727965451265,0.076942,60601.0,60600.0,0.32820271]
[1727965451487,0.001642,60601.0,60600.0,0.36137271]
[1727965451700,0.001642,60601.0,60600.0,0.46137271]
[1727965451922,0.001642,60601.0,60600.0,0.165016]
[1727965452369,0.001642,60601.0,60596.0,0.165026]
[1727965452602,0.44450273,60598.0,60591.0,0.03317]
[1727965452821,0.0753,60597.0,60591.0,0.03317]
[1727965453043,0.44442091,60592.0,60575.0,0.03317]
[1727965453300,0.37383687,60597.0,60574.0,0.2463924]
[1727965453301,0.44442091,60586.0,60574.0,0.2463924]
[1727965453572,0.0978,60591.0,60583.0,0.330125]
[1727965453821,0.0978,60591.0,60590.0,0.165043]
[1727965454062,0.3441924,60591.0,60590.0,0.165043]
[1727965454285,0.3441924,60591.0,60590.0,0.198213]
[1727965454286,0.0978,60591.0,60590.0,0.198213]
[1727965454500,0.0978,60591.0,60590.0,0.165043]
[1727965454957,0.0978,60591.0,60590.0,0.179043]
[1727965455188,0.0978,60591.0,60590.0,0.34222971]
[1727965455417,0.001642,60601.0,60600.0,0.298186]
[1727965455658,0.001642,60601.0,60600.0,0.46137271]
[1727965455894,0.001642,60601.0,60600.0,0.42820271]
[1727965456117,0.001642,60601.0,60600.0,0.265016]
[1727965456334,0.165017,60600.0,60594.0,0.16503]
[1727965456558,0.165017,60600.0,60590.0,0.014]
[1727965456559,0.44442091,60595.0,60590.0,0.014]
[1727965457061,0.44442091,60595.0,60583.0,0.00419616]
[1727965457370,0.001642,60601.0,60598.0,0.16502]
[1727965457585,0.001642,60601.0,60600.0,0.165016]
[1727965458707,0.001642,60601.0,60600.0,0.42820271]
[1727965459114,0.001642,60601.0,60600.0,0.46137271]
[1727965459674,0.001642,60601.0,60600.0,0.42820271]
[1727965460110,0.001642,60601.0,60600.0,0.44220271]
[1727965461085,0.001642,60601.0,60600.0,0.46137271]
[1727965461340,0.16673682,60601.0,60600.0,0.014]
[1727965461596,0.16673682,60601.0,60581.0,0.2463924]
[1727965461597,8.182e-05,60598.0,60581.0,0.2463924]
[1727965461815,0.01891147,60601.0,60581.0,0.2463924]
[1727965461816,0.44442091,60585.0,60581.0,0.2463924]
[1727965462036,0.44442091,60585.0,60574.0,0.2463924]
[1727965462276,8.182e-05,60588.0,60565.0,0.066162]
[1727965462277,0.44442091,60578.0,60565.0,0.066162]
[1727965462502,0.1729,60580.0,60579.0,0.165073]
[1727965463241,0.0764,60590.0,60589.0,0.165044]
[1727965463930,0.0764,60590.0,60571.0,0.001]
[1727965464147,0.0764,60590.0,60579.0,0.014]
[1727965464370,0.0764,60590.0,60581.0,0.165067]
[1727965464371,0.44442091,60586.0,60581.0,0.165067]
[1727965464600,0.44442091,60586.0,60574.0,0.00155402]
[1727965464820,0.44442091,60586.0,60580.0,0.1]
[1727965465290,0.44442091,60586.0,60581.0,0.165065]
[1727965465506,0.01719773,60585.0,60580.0,0.430138]
[1727965465742,0.44442091,60586.0,60580.0,0.430138]
[1727965465993,0.44442091,60586.0,60578.0,0.165075]
[1727965465994,0.01722177,60585.0,60578.0,0.165075]
[1727965466250,0.165069,60581.0,60575.0,0.165082]
[1727965466482,0.165069,60581.0,60569.0,0.2463924]
[1727965466483,0.33018082,60588.0,60570.0,0.330193]
[1727965466484,0.46164268,60580.0,60570.0,0.330193]
[1727965466690,0.62671468,60580.0,60574.0,0.165084]
[1727965466911,0.26361417,60579.0,60565.0,0.03747741]
[1727965467126,0.01722177,60578.0,60570.0,0.330194]
[1727965467346,0.33111,60586.0,60565.0,0.330221]
[1727965467347,0.44450273,60574.0,60565.0,0.330221]
[1727965467600,0.44450273,60574.0,60563.0,0.2463924]
[1727965467601,0.44442091,60574.0,60563.0,0.2463924]
[1727965467807,0.44442091,60574.0,60569.0,0.165099]
[1727965467808,0.01722177,60573.0,60569.0,0.165099]
[1727965468025,0.01722177,60573.0,60568.0,0.330203]
[1727965468255,0.01722177,60573.0,60562.0,0.09791903]
[1727965468256,0.09272177,60572.0,60562.0,0.09362053]
[1727965468535,0.165117,60563.0,60562.0,0.09362053]
[1727965468744,0.01731659,60563.0,60562.0,0.09362053]
[1727965469214,0.60602599,60563.0,60535.0,0.2463924]
[1727965469494,0.16516,60547.0,60546.0,0.2463924]
[1727965469695,0.16516,60547.0,60535.0,0.2463924]
[1727965469696,0.33042082,60544.0,60535.0,0.2463924]
[1727965469940,0.33042082,60544.0,60524.0,0.005]
[1727965469941,0.44442091,60537.0,60533.0,0.2463924]
[1727965470177,0.44442091,60537.0,60533.0,0.165198]
[1727965470425,0.44442091,60537.0,60534.0,0.01087156]
[1727965470426,0.01745236,60536.0,60534.0,0.01087156]
[1727965470633,0.01745236,60535.0,60534.0,0.01087156]
[1727965470893,0.01745236,60535.0,60527.0,0.331248]
[1727965471135,0.5767764,60536.0,60527.0,0.00082]
[1727965471136,0.60963291,60528.0,60527.0,0.00082]
[1727965471379,0.44442091,60528.0,60527.0,0.00082]
[1727965471622,0.44442091,60528.0,60527.0,0.166035]
[1727965471623,0.01745236,60528.0,60527.0,0.166035]
[1727965471838,0.0768,60534.0,60527.0,0.00082]
[1727965472072,0.2463924,60532.0,60531.0,0.165204]
[1727965472323,0.0768,60534.0,60533.0,0.165199]
[1727965472562,0.4115604,60545.0,60539.0,0.165182]
[1727965472563,0.0788,60544.0,60539.0,0.165182]
[1727965472829,0.0788,60544.0,60536.0,0.330381]
[1727965472830,0.2463924,60537.0,60536.0,0.495571]
[1727965473051,0.0788,60544.0,60527.0,0.00082]
[1727965473052,0.44442091,60541.0,60534.0,0.330392]
[1727965473272,0.01733721,60540.0,60535.0,0.330383]
[1727965473496,0.44442091,60541.0,60533.0,0.330397]
[1727965473741,0.0788,60544.0,60532.0,0.1]
[1727965473742,0.001,60540.0,60539.0,0.014]
[1727965473974,0.001,60540.0,60539.0,0.179182]
[1727965475120,0.001,60540.0,60534.0,0.330388]
[1727965475121,0.0788,60544.0,60543.0,0.165171]
[1727965475364,0.0788,60544.0,60534.0,0.009]
[1727965475365,0.44542091,60541.0,60534.0,0.009]
[1727965475616,0.44542091,60541.0,60530.0,0.165205]
[1727965475617,0.60961391,60535.0,60530.0,0.165205]
[1727965475856,0.60961391,60535.0,60527.0,0.331246]
[1727965475857,0.09,60534.0,60527.0,0.00082]
[1727965476075,0.165212,60528.0,60527.0,0.00082]
[1727965476304,0.09,60534.0,60527.0,0.00082]
[1727965476586,0.3363924,60534.0,60530.0,0.165206]
[1727965476802,0.09,60534.0,60529.0,0.330419]
[1727965477051,0.091,60534.0,60533.0,0.165199]
[1727965477520,0.001,60534.0,60533.0,0.17278644]
[1727965477755,0.001,60534.0,60533.0,0.00758744]
[1727965478199,8.182e-05,60539.0,60533.0,0.33795755]
[1727965478407,0.2463924,60538.0,60533.0,0.00756455]
[1727965478622,0.44442091,60541.0,60534.0,0.330389]
[1727965478844,0.44442091,60541.0,60534.0,0.00756346]
[1727965479090,0.3251924,60544.0,60541.0,0.330352]
[1727965479315,0.165186,60538.0,60532.0,0.165199]
[1727965479555,8.182e-05,60541.0,60527.0,0.01282]
[1727965479556,0.44442091,60533.0,60527.0,0.01282]
[1727965479795,0.165212,60528.0,60527.0,0.00082]
[1727965480031,0.165208,60530.0,60527.0,0.00082]
[1727965480248,0.44442091,60533.0,60527.0,0.00082]
[1727965480498,0.165207,60530.0,60527.0,0.00082]
[1727965480733,0.165212,60528.0,60527.0,0.00082]
[1727965480968,0.339412,60528.0,60527.0,0.00082]
[1727965481198,0.35665316,60528.0,60527.0,0.00082]
[1727965481657,0.35665316,60528.0,60519.0,0.000818]
[1727965481658,0.44442091,60520.0,60519.0,0.000818]
[1727965481923,0.165227,60523.0,60519.0,0.000818]
[1727965482146,0.20009986,60528.0,60519.0,0.000818]
[1727965482363,0.44649226,60528.0,60527.0,0.008]
[1727965482596,0.44649226,60528.0,60527.0,0.165215]
[1727965482861,0.1742,60528.0,60527.0,0.165215]
[1727965483069,0.1742,60528.0,60519.0,0.000818]
[1727965483070,0.0768,60528.0,60525.0,0.1]